bitfinex-derivatives/quotes_SOLF0:USTF0_20250613
["timestamp","ask_amount","ask_price","bid_price","bid_amount"]
[1749851376799,0.04650944,147.27,147.26,6.7869]
[1749851378003,6.7843,147.32,147.28,6.7858]
[1749851378202,35.06,147.33,147.25,41.79372087]
[1749851378402,35.06,147.33,147.26,2.1615]
[1749851378603,6.73372087,147.34,147.26,8.89522087]
[1749851378804,6.73372087,147.34,147.29,6.7852]
[1749851379000,6.82710703,147.33,147.3,0.0446773]
[1749851380305,0.04330703,147.33,147.3,6.8297773]
[1749851381904,0.04330703,147.33,147.3,0.0446773]
[1749851382108,6.82710703,147.33,147.3,0.0446773]
[1749851382305,0.04330703,147.33,147.3,0.0446773]
[1749851382811,0.04330703,147.33,147.3,6.8297773]
[1749851385310,0.04330703,147.33,147.3,0.0446773]
[1749851389316,0.04330703,147.33,147.3,6.8295773]
[1749851394222,6.82700703,147.33,147.3,6.8295773]
[1749851401236,4.31806891,147.32,147.3,6.8295773]
[1749851402133,11.10226891,147.32,147.3,0.0446773]
[1749851402334,4.31806891,147.32,147.3,0.0446773]
[1749851406137,11.10226891,147.32,147.3,0.0446773]
[1749851406832,4.31806891,147.32,147.3,0.0446773]
[1749851407544,6.7846,147.31,147.3,0.0446773]
[1749851407837,39.07806891,147.32,147.23,34.76]
[1749851408039,4.31806891,147.27,147.23,34.76]
[1749851408345,37.0377,147.32,147.2,4.6314]
[1749851408346,34.76,147.28,147.2,43.70946891]
[1749851408745,4.31806891,147.26,147.22,4.31806891]
[1749851409040,0.04406245,147.25,147.23,0.04450174]
[1749851409729,0.04406245,147.25,147.23,6.83260174]
[1749851410934,0.04406245,147.25,147.24,6.7878]
[1749851429272,6.7852,147.3,147.28,6.7859]
[1749851429973,48.29686517,147.31,147.24,34.76]
[1749851430163,41.5447,147.31,147.24,34.76]
[1749851430368,0.04497351,147.29,147.26,0.04308325]
[1749851430568,0.04497351,147.29,147.28,6.786]
[1749851432167,0.04497351,147.29,147.27,6.7864]
[1749851432369,4.36417438,147.29,147.26,0.04308325]
[1749851432569,4.31920087,147.27,147.26,0.04308325]
[1749851433265,11.10560087,147.27,147.26,0.04308325]
[1749851435276,13.54011552,147.27,147.26,0.04308325]
[1749851440780,6.7864,147.27,147.26,0.04308325]
[1749851441667,6.7892,147.21,147.17,10.65952575]
[1749851441881,6.7892,147.21,147.16,34.64]
[1749851442076,6.7892,147.21,147.17,6.7907]
[1749851442675,6.7892,147.21,147.17,6.7909]
[1749851442977,0.04967009,147.2,147.18,0.05052881]
[1749851445481,6.83967009,147.2,147.18,0.05052881]
[1749851446683,0.04967009,147.2,147.18,0.05052881]
[1749851446879,0.04967009,147.2,147.18,6.84072881]
[1749851448685,0.04967009,147.2,147.19,6.7901]
[1749851454000,0.04967009,147.2,147.18,0.05052881]
[1749851454001,0.04967009,147.2,147.18,6.84092881]
[1749851455685,0.04967009,147.2,147.19,6.7901]
[1749851457093,0.04967009,147.2,147.18,6.84102881]
[1749851457896,0.04967009,147.2,147.18,0.05052881]
[1749851458195,6.83957009,147.2,147.18,0.05052881]
[1749851459999,6.7901,147.19,147.18,0.05052881]
[1749851461505,6.83957009,147.2,147.18,0.05052881]
[1749851462406,6.7901,147.19,147.18,0.05052881]
[1749851471416,13.54381552,147.19,147.18,0.05052881]
[1749851472410,6.7911,147.17,147.14,6.7923]
[1749851473417,6.8391748,147.17,147.14,6.84396227]
[1749851473819,6.8391748,147.17,147.14,0.05166227]
[1749851475421,6.7916,147.16,147.14,0.05166227]
[1749851475913,0.0480748,147.17,147.14,0.05166227]
[1749851476119,6.8394748,147.17,147.14,0.05166227]
[1749851477315,6.7916,147.16,147.14,0.05166227]
[1749851482331,6.7916,147.16,147.14,6.84396227]
[1749851484414,6.7916,147.16,147.14,0.05166227]
[1749851485628,6.7916,147.16,147.14,6.84406227]
[1749851486525,11.16608802,147.17,147.14,6.84406227]
[1749851487823,11.16608802,147.17,147.14,0.05166227]
[1749851487824,6.7916,147.16,147.14,0.05166227]
[1749851490419,11.16588802,147.17,147.14,0.05166227]
[1749851491121,6.7916,147.16,147.14,0.05166227]
[1749851491434,4.37468802,147.17,147.14,0.05166227]
[1749851491625,11.16588802,147.17,147.14,0.05166227]
[1749851493019,6.8392748,147.17,147.14,0.05166227]
[1749851493224,6.7916,147.16,147.14,0.05166227]
[1749851494131,11.16578802,147.17,147.14,6.84406227]
[1749851494331,11.16578802,147.17,147.14,0.05166227]
[1749851496323,6.7916,147.16,147.14,0.05166227]
[1749851497630,11.11861322,147.15,147.14,0.05166227]
[1749851500539,18.23973276,147.15,147.14,0.05166227]
[1749851500837,15.67854212,147.15,147.14,0.05166227]
[1749851501230,18.23973276,147.15,147.14,0.05166227]
[1749851501427,13.67981011,147.15,147.14,0.05166227]
[1749851501633,18.23975091,147.15,147.14,0.05166227]
[1749851501833,11.11861322,147.15,147.14,0.05166227]
[1749851502132,18.23750371,147.15,147.14,0.05166227]
[1749851502328,18.23740912,147.15,147.14,0.05166227]
[1749851502531,18.23740907,147.15,147.14,0.05166227]
[1749851502726,11.11861322,147.15,147.14,0.05166227]
[1749851502926,15.67618787,147.15,147.14,0.05166227]
[1749851503127,18.2372767,147.15,147.14,0.05166227]
[1749851503334,15.67608002,147.15,147.14,0.05166227]
[1749851503530,11.11861322,147.15,147.14,0.05166227]
[1749851503732,18.2356047,147.15,147.14,0.05166227]
[1749851503934,15.67604954,147.15,147.14,0.05166227]
[1749851504135,18.2356047,147.15,147.14,0.05166227]
[1749851504435,18.23565121,147.15,147.14,0.05166227]
[1749851504638,13.67818441,147.15,147.14,0.05166227]
[1749851504940,18.23565486,147.15,147.14,0.05166227]
[1749851505134,6.7931,147.13,147.1,13.13399436]
[1749851506142,6.84273477,147.13,147.1,13.18397142]
[1749851506542,6.84273477,147.13,147.1,6.84417706]
[1749851508646,6.7934,147.12,147.1,0.04997706]
[1749851508844,4.37624799,147.13,147.1,0.04997706]
[1749851509944,11.12041322,147.11,147.1,0.04997706]
[1749851513350,6.7953,147.08,147.05,13.13629436]
[1749851514043,6.9724,147.12,147.04,6.7968]
[1749851514044,11.12231322,147.07,147.04,6.7968]
[1749851514350,4.37039192,147.07,147.04,6.84778339]
[1749851515149,11.16619192,147.07,147.04,6.84778339]
[1749851516547,6.8395787,147.07,147.04,6.84778339]
[1749851518347,6.8396787,147.07,147.04,6.84798339]
[1749851519156,6.8396787,147.07,147.04,0.05098339]
[1749851522763,6.7962,147.06,147.04,0.05098339]
[1749851522957,0.0437787,147.07,147.04,0.05098339]
[1749851523965,6.7962,147.06,147.04,0.05098339]
[1749851525359,6.8395787,147.07,147.04,6.84798339]
[1749851525559,0.0437787,147.07,147.04,0.05098339]
[1749851526264,6.7964,147.06,147.04,0.05098339]
[1749851526464,4.37039192,147.07,147.04,0.05098339]
[1749851527166,6.7962,147.06,147.04,0.05098339]
[1749851527369,4.37039192,147.07,147.04,0.05098339]
[1749851528066,11.16639192,147.07,147.04,0.05098339]
[1749851528666,4.32661322,147.05,147.04,0.05098339]
[1749851530763,11.12321322,147.05,147.04,0.05098339]
[1749851556184,13.65701592,147.05,147.04,0.05098339]
[1749851556595,11.12321322,147.05,147.04,0.05098339]
[1749851556788,13.65565113,147.05,147.04,0.05098339]
[1749851557092,11.12321322,147.05,147.04,0.05098339]
[1749851557392,13.65574787,147.05,147.04,0.05098339]
[1749851557684,13.65634626,147.05,147.04,0.05098339]
[1749851557891,13.65636424,147.05,147.04,0.05098339]
[1749851558085,11.12321322,147.05,147.04,0.05098339]
[1749851558290,13.65643576,147.05,147.04,0.05098339]
[1749851558489,11.12321322,147.05,147.04,0.05098339]
[1749851558686,13.65650651,147.05,147.04,0.05098339]
[1749851559290,13.65640012,147.05,147.04,0.05098339]
[1749851559490,13.65639937,147.05,147.04,0.05098339]
[1749851559884,11.12321322,147.05,147.04,0.05098339]
[1749851560084,13.65638782,147.05,147.04,0.05098339]
[1749851560593,13.6562982,147.05,147.04,0.05098339]
[1749851560788,13.65630215,147.05,147.04,0.05098339]
[1749851561194,13.65624976,147.05,147.04,0.05098339]
[1749851561486,11.12321322,147.05,147.04,0.05098339]
[1749851561693,13.65620498,147.05,147.04,0.05098339]
[1749851561891,13.65620497,147.05,147.04,0.05098339]
[1749851562090,13.65620445,147.05,147.04,0.05098339]
[1749851562588,11.12321322,147.05,147.04,0.05098339]
[1749851566499,13.65473404,147.05,147.04,0.05098339]
[1749851566702,13.65466716,147.05,147.04,0.05098339]
[1749851566904,11.12321322,147.05,147.04,0.05098339]
[1749851567104,13.65464264,147.05,147.04,0.05098339]
[1749851567598,13.6532653,147.05,147.04,0.05098339]
[1749851568000,11.12321322,147.05,147.04,0.05098339]
[1749851568200,13.65323791,147.05,147.04,0.05098339]
[1749851568398,11.12321322,147.05,147.04,0.05098339]
[1749851568594,13.65323204,147.05,147.04,0.05098339]
[1749851569806,13.65324679,147.05,147.04,0.05098339]
[1749851570198,13.65325485,147.05,147.04,0.05098339]
[1749851570398,11.12321322,147.05,147.04,0.05098339]
[1749851570803,13.6532552,147.05,147.04,0.05098339]
[1749851571004,13.65321883,147.05,147.04,0.05098339]
[1749851571297,15.95106031,147.05,147.04,0.05098339]
[1749851571501,18.48251401,147.05,147.04,0.05098339]
[1749851571701,11.12321322,147.05,147.04,0.05098339]
[1749851571896,6.798,147.02,147.0,40.97563685]
[1749851573009,11.16961883,147.02,147.0,40.97563685]
[1749851577910,4.32661322,147.01,147.0,40.97563685]
[1749851578106,4.32661322,147.01,147.0,34.62]
[1749851581114,4.32661322,147.01,147.0,40.97563685]
[1749851581417,11.12511322,147.01,147.0,34.62]
[1749851583314,11.12511322,147.01,147.0,43.10754096]
[1749851584312,4.32661322,147.01,147.0,34.62]
[1749851587315,4.32661322,147.01,146.99,6.36502569]
[1749851587815,4.32661322,147.01,146.98,40.96502569]
[1749851588016,4.32661322,147.01,146.99,6.36502569]
[1749851588217,11.12511322,147.01,146.99,6.36502569]
[1749851588911,11.12511322,147.01,146.98,40.96502569]
[1749851590119,6.7989,147.0,146.98,40.96502569]
[1749851591219,11.12551322,147.0,146.98,34.6]
[1749851591526,11.12551322,147.0,146.98,40.96502569]
[1749851591718,11.12551322,147.0,146.98,34.6]
[1749851595420,6.7994,146.99,146.98,34.6]
[1749851596318,11.12581322,147.0,146.98,34.6]
[1749851596926,11.12581322,147.0,146.98,40.96502569]
[1749851597515,6.7994,146.99,146.98,40.96502569]
[1749851598423,11.12571322,147.0,146.98,34.6]
[1749851599420,11.12571322,147.0,146.98,40.96502569]
[1749851599624,11.12571322,147.0,146.98,34.6]
[1749851602126,6.7994,146.99,146.98,34.6]
[1749851602426,4.32661322,147.0,146.98,34.6]
[1749851602927,11.12601322,147.0,146.98,34.6]
[1749851603618,6.7994,146.99,146.98,34.6]
[1749851604833,6.7991,147.0,146.98,34.6]
[1749851605025,11.12571322,147.0,146.98,34.6]
[1749851606225,6.7994,146.99,146.98,34.6]
[1749851607842,11.12571322,147.0,146.98,34.6]
[1749851608834,11.12571322,147.0,146.98,40.96502569]
[1749851612430,6.7994,146.99,146.98,40.96502569]
[1749851612833,11.12601322,146.99,146.98,40.96502569]
[1749851613936,11.12601322,146.99,146.98,34.6]
[1749851614138,4.32661322,146.99,146.98,34.6]
[1749851621544,11.12601322,146.99,146.96,6.36502569]
[1749851621744,11.17761994,146.99,146.96,6.36502569]
[1749851622739,11.17761994,146.99,146.95,41.361]
[1749851623441,11.17761994,146.99,146.96,6.8006]
[1749851623643,11.17761994,146.99,146.96,13.15719347]
[1749851627342,11.12651322,146.98,146.96,6.35659347]
[1749851627540,11.12651322,146.98,146.95,47.71769347]
[1749851628648,4.32661322,146.97,146.95,47.71769347]
[1749851630047,4.32661322,146.96,146.95,47.71769347]
[1749851630246,4.32661322,146.96,146.95,40.91659347]
[1749851630441,4.32661322,146.96,146.95,6.35659347]
[1749851630840,4.32661322,146.96,146.93,15.28954096]
[1749851631144,4.37859473,146.96,146.93,6.802]
[1749851631447,4.37859473,146.96,146.92,43.04754096]
[1749851631651,4.37859473,146.96,146.93,6.8021]
[1749851633444,0.05198151,146.96,146.94,6.8017]
[1749851633643,4.37859473,146.96,146.94,6.8017]
[1749851636452,4.37859473,146.96,146.93,6.8019]
[1749851640154,4.37859473,146.96,146.92,34.56]
[1749851640653,4.37859473,146.96,146.93,6.8019]
[1749851644658,4.37859473,146.96,146.94,6.8017]
[1749851645155,4.37859473,146.96,146.93,6.802]
[1749851645656,11.17959473,146.96,146.92,41.3624]
[1749851645850,4.32661322,146.94,146.92,41.3624]
[1749851646752,4.32661322,146.94,146.92,34.56]
[1749851649147,4.32661322,146.94,146.91,6.8029]
[1749851651954,4.32661322,146.93,146.91,6.8029]
[1749851656066,4.32661322,146.93,146.9,6.8033]
[1749851656268,4.37756032,146.93,146.9,6.8033]
[1749851657862,4.37756032,146.93,146.91,6.8028]
[1749851658368,4.37756032,146.93,146.9,6.8034]
[1749851659573,4.37756032,146.93,146.89,34.54]
[1749851659574,4.37756032,146.93,146.91,6.8031]
[1749851659867,4.37756032,146.93,146.89,34.54]
[1749851660167,4.32661322,146.91,146.89,34.54]
[1749851662271,4.32661322,146.91,146.89,41.344]
[1749851665275,4.32661322,146.91,146.89,34.54]
[1749851665567,4.32661322,146.91,146.88,6.8043]
[1749851665974,4.32661322,146.91,146.89,6.8039]
[1749851666273,4.32661322,146.91,146.87,4.5655]
[1749851666870,4.32661322,146.91,146.89,6.8039]
[1749851667271,4.32661322,146.91,146.88,6.8042]
[1749851667979,4.32661322,146.91,146.89,6.8039]
[1749851673882,6.8533471,146.93,146.89,6.8039]
[1749851674084,4.32661322,146.91,146.89,6.8039]
[1749851675983,4.32661322,146.92,146.86,43.02754096]
[1749851676278,0.05161965,146.9,146.87,4.32661322]
[1749851676977,0.05161965,146.9,146.89,6.804]
[1749851677976,6.801,146.96,146.93,6.802]
[1749851678175,4.32661322,146.95,146.93,6.802]
[1749851678981,4.37355765,146.95,146.93,6.85338014]
[1749851680377,4.37355765,146.95,146.94,6.8017]
[1749851685188,4.37355765,146.95,146.93,6.85348014]
[1749851689092,4.37355765,146.95,146.94,6.8017]
[1749851689786,0.04694443,146.95,146.94,6.8017]
[1749851690182,4.32661322,146.98,146.96,6.8005]
[1749851690386,4.32661322,146.98,146.94,34.5]
[1749851690886,4.32661322,146.98,146.97,6.8003]
[1749851691385,4.37148066,146.99,146.96,0.0446677]
[1749851691889,0.04486744,146.99,146.96,0.0446677]
[1749851692189,4.32661322,146.98,146.96,0.0446677]
[1749851692886,4.37148066,146.99,146.98,6.7999]
[1749851694385,0.04486744,146.99,146.98,6.7999]
[1749851694587,4.32661322,147.02,147.0,6.7988]
[1749851695086,4.32661322,147.01,146.96,34.5]
[1749851695286,4.32661322,147.01,146.96,38.82661322]
[1749851695679,0.04758635,147.0,146.97,0.04447901]
[1749851696396,0.04758635,147.0,146.99,6.7994]
[1749851697601,4.6852,147.06,147.02,6.7979]
[1749851697602,4.32661322,147.03,147.02,6.7979]
[1749851697888,4.32661322,147.03,146.98,4.32661322]
[1749851698192,4.32661322,147.04,146.98,4.32661322]
[1749851698392,4.32661322,147.05,147.0,4.32661322]
[1749851698582,0.04769113,147.04,147.02,4.32661322]
[1749851698788,0.04769113,147.04,147.03,6.7976]
[1749851699790,6.7951,147.09,147.02,4.32661322]
[1749851699791,4.32661322,147.09,147.02,4.32661322]
[1749851700085,4.32661322,147.11,147.07,4.32661322]
[1749851700289,4.32661322,147.12,147.1,6.7944]
[1749851700489,4.32661322,147.12,147.07,38.82661322]
[1749851700690,0.05181813,147.11,147.1,6.7939]
[1749851700892,0.05209386,147.12,147.1,6.7939]
[1749851701291,0.05209386,147.12,147.09,0.04985709]
[1749851702394,0.05209386,147.12,147.11,6.7939]
[1749851702587,6.76441388,147.17,147.11,34.48]
[1749851702895,11.22441388,147.2,147.11,41.24441388]
[1749851703392,6.76441388,147.2,147.13,6.76441388]
[1749851703589,0.04408734,147.18,147.15,0.04922466]
[1749851703785,2.1889,147.27,147.17,6.76441388]
[1749851703986,4.76474814,147.26,147.18,2.3672]
[1749851704286,6.76441388,147.27,147.22,6.7886]
[1749851704496,6.76441388,147.27,147.21,34.48]
[1749851704793,0.04706081,147.25,147.23,0.04373976]
[1749851705989,6.83486081,147.25,147.23,0.04373976]
[1749851706190,13.59927469,147.25,147.23,0.04373976]
[1749851706892,6.7879,147.24,147.23,0.04373976]
[1749851707994,13.59907469,147.25,147.23,0.04373976]
[1749851708894,6.7883,147.24,147.23,0.04373976]
[1749851711606,0.04706081,147.25,147.23,0.04373976]
[1749851712999,6.83506081,147.25,147.23,0.04373976]
[1749851716798,0.04706081,147.25,147.23,0.04373976]
[1749851720494,6.83516081,147.25,147.23,0.04373976]
[1749851720890,0.04706081,147.25,147.23,0.04373976]
[1749851721096,6.7884,147.24,147.23,0.04373976]
[1749851721296,6.81147469,147.25,147.18,34.42]
[1749851721498,6.76441388,147.25,147.18,34.42]
[1749851721701,8.97161388,147.25,147.18,34.42]
[1749851722001,6.76441388,147.24,147.18,34.42]
[1749851722402,0.05141694,147.22,147.2,0.04606372]
[1749851725109,6.84031694,147.22,147.2,0.04606372]
[1749851725798,0.05141694,147.22,147.2,0.04606372]
[1749851732812,7.41134195,147.21,147.2,0.04606372]
[1749851733406,4.84201856,147.21,147.2,0.04606372]
[1749851733606,4.83955094,147.21,147.2,0.04606372]
[1749851733816,2.56938988,147.21,147.2,0.04606372]
[1749851734117,4.83954374,147.21,147.2,0.04606372]
[1749851734413,7.40897679,147.21,147.2,0.04606372]
[1749851734612,7.40898304,147.21,147.2,0.04606372]
[1749851734812,4.83957875,147.21,147.2,0.04606372]
[1749851735015,0.05141694,147.22,147.2,0.04606372]
[1749851735312,7.40889746,147.21,147.2,0.04606372]
[1749851735513,7.40888924,147.21,147.2,0.04606372]
[1749851735710,7.40690848,147.21,147.2,0.04606372]
[1749851736316,7.40690847,147.21,147.2,0.04606372]
[1749851736619,2.56511579,147.21,147.2,0.04606372]
[1749851736815,14.1837858,147.21,147.2,0.04606372]
[1749851737721,2.56511579,147.21,147.2,0.04606372]
[1749851737918,7.39458821,147.21,147.2,0.04606372]
[1749851738118,14.18378821,147.21,147.2,0.04606372]
[1749851738820,14.18380669,147.21,147.2,0.04606372]
[1749851739015,11.61867242,147.21,147.2,0.04606372]
[1749851739220,14.18383994,147.21,147.2,0.04606372]
[1749851740116,6.7892,147.21,147.2,0.04606372]
[1749851740316,14.1837931,147.21,147.2,0.04606372]
[1749851740716,7.39483075,147.21,147.2,0.04606372]
[1749851741019,2.56521064,147.21,147.2,0.04606372]
[1749851741420,2.56521853,147.21,147.2,0.04606372]
[1749851741625,2.56521846,147.21,147.2,0.04606372]
[1749851741824,2.5652205,147.21,147.2,0.04606372]
[1749851742017,2.56522293,147.21,147.2,0.04606372]
[1749851742218,6.84041694,147.22,147.2,0.04606372]
[1749851742418,2.56521476,147.21,147.2,0.04606372]
[1749851742623,6.84041694,147.22,147.2,0.04606372]
[1749851742823,9.35441725,147.21,147.2,0.04606372]
[1749851743123,0.05141694,147.22,147.2,0.04606372]
[1749851743313,2.56521301,147.21,147.2,0.04606372]
[1749851744013,2.56519452,147.21,147.2,0.04606372]
[1749851744215,6.84041694,147.22,147.2,0.04606372]
[1749851744423,2.56520325,147.21,147.2,0.04606372]
[1749851744620,0.05141694,147.22,147.2,0.04606372]
[1749851744828,2.565218,147.21,147.2,0.04606372]
[1749851745015,6.25986257,147.22,147.2,0.04606372]
[1749851745217,2.56521675,147.21,147.2,0.04606372]
[1749851745521,6.84041694,147.22,147.2,0.04606372]
[1749851745820,2.56521675,147.21,147.2,0.04606372]
[1749851746527,2.56520852,147.21,147.2,0.04606372]
[1749851747224,6.7892,147.21,147.2,0.04606372]
[1749851747721,9.35447764,147.21,147.2,0.04606372]
[1749851747940,6.7892,147.21,147.2,0.04606372]
[1749851748317,13.04886257,147.22,147.2,0.04606372]
[1749851748518,6.25986257,147.22,147.2,0.04606372]
[1749851749723,6.7892,147.21,147.2,0.04606372]
[1749851762435,9.35643753,147.21,147.2,0.04606372]
[1749851762636,6.7892,147.21,147.2,0.04606372]
[1749851762839,9.35643751,147.21,147.2,0.04606372]
[1749851763236,6.7892,147.21,147.2,0.04606372]
[1749851763429,9.35641732,147.21,147.2,0.04606372]
[1749851763629,6.7892,147.21,147.2,0.04606372]
[1749851763829,9.35641732,147.21,147.2,0.04606372]
[1749851764030,6.7892,147.21,147.2,0.04606372]
[1749851764735,9.35641732,147.21,147.2,0.04606372]
[1749851764941,6.7892,147.21,147.2,0.04606372]
[1749851765439,9.35641107,147.21,147.2,0.04606372]
[1749851765642,9.35641732,147.21,147.2,0.04606372]
[1749851766333,9.3564506,147.21,147.2,0.04606372]
[1749851766828,6.7892,147.21,147.2,0.04606372]
[1749851767035,9.35643333,147.21,147.2,0.04606372]
[1749851767241,9.35731951,147.21,147.2,0.04606372]
[1749851767438,9.35731826,147.21,147.2,0.04606372]
[1749851767634,6.7892,147.21,147.2,0.04606372]
[1749851767939,9.35731202,147.21,147.2,0.04606372]
[1749851768635,9.35731826,147.21,147.2,0.04606372]
[1749851768838,9.35731951,147.21,147.2,0.04606372]
[1749851769340,6.7892,147.21,147.2,0.04606372]
[1749851769541,9.3557124,147.21,147.2,0.04606372]
[1749851769741,9.35571365,147.21,147.2,0.04606372]
[1749851770140,9.3557124,147.21,147.2,0.04606372]
[1749851770342,6.7892,147.21,147.2,0.04606372]
[1749851770542,9.35569763,147.21,147.2,0.04606372]
[1749851770948,9.35569638,147.21,147.2,0.04606372]
[1749851771644,9.35570013,147.21,147.2,0.04606372]
[1749851772051,9.35569889,147.21,147.2,0.04606372]
[1749851772350,9.35568287,147.21,147.2,0.04606372]
[1749851772744,6.7892,147.21,147.2,0.04606372]
[1749851772942,9.35568162,147.21,147.2,0.04606372]
[1749851773144,6.7892,147.21,147.2,0.04606372]
[1749851773345,9.35568287,147.21,147.2,0.04606372]
[1749851774151,6.7892,147.21,147.2,0.04606372]
[1749851774352,9.35569264,147.21,147.2,0.04606372]
[1749851774554,9.35569389,147.21,147.2,0.04606372]
[1749851774851,6.7892,147.21,147.2,0.04606372]
[1749851775051,9.35570014,147.21,147.2,0.04606372]
[1749851776155,6.7892,147.21,147.2,0.04606372]
[1749851776353,9.35569889,147.21,147.2,0.04606372]
[1749851777352,9.35571366,147.21,147.2,0.04606372]
[1749851777556,6.7892,147.21,147.2,0.04606372]
[1749851777854,9.35569389,147.21,147.2,0.04606372]
[1749851778555,6.7892,147.21,147.2,0.04606372]
[1749851778755,9.35570014,147.21,147.2,0.04606372]
[1749851779253,6.7892,147.21,147.2,0.04606372]
[1749851779653,9.35568287,147.21,147.2,0.04606372]
[1749851779851,6.7892,147.21,147.2,0.04606372]
[1749851780055,9.35568287,147.21,147.2,0.04606372]
[1749851780257,9.35569889,147.21,147.2,0.04606372]
[1749851780648,9.35568412,147.21,147.2,0.04606372]
[1749851780844,9.35568287,147.21,147.2,0.04606372]
[1749851781053,9.35568412,147.21,147.2,0.04606372]
[1749851781254,9.35568162,147.21,147.2,0.04606372]
[1749851781458,9.35730475,147.21,147.2,0.04606372]
[1749851781753,9.36199271,147.21,147.2,0.04606372]
[1749851781954,9.36199146,147.21,147.2,0.04606372]
[1749851782556,9.36200626,147.21,147.2,0.04606372]
[1749851782752,6.7892,147.21,147.2,0.04606372]
[1749851783159,9.36200251,147.21,147.2,0.04606372]
[1749851783552,9.3619852,147.21,147.2,0.04606372]
[1749851783756,6.7892,147.21,147.2,0.04606372]
[1749851783952,9.36198395,147.21,147.2,0.04606372]
[1749851784960,6.7892,147.21,147.2,0.04606372]
[1749851785159,9.36115256,147.21,147.2,0.04606372]
[1749851785861,9.36113777,147.21,147.2,0.04606372]
[1749851786061,9.36113652,147.21,147.2,0.04606372]
[1749851786258,6.7912,147.17,147.15,38.9129]
[1749851786464,4.32473268,147.19,147.15,34.4]
[1749851786764,2.57226112,147.18,147.15,34.4]
[1749851787061,6.7914,147.17,147.15,34.4]
[1749851787363,0.04949419,147.17,147.15,0.04757259]
[1749851787760,6.84099419,147.17,147.15,0.04757259]
[1749851790263,6.7915,147.16,147.15,0.04757259]
[1749851802372,6.84079419,147.17,147.15,0.04757259]
[1749851804682,11.16552687,147.17,147.15,0.04757259]
[1749851805078,6.84079419,147.17,147.15,0.04757259]
[1749851805387,6.7915,147.16,147.15,0.04757259]
[1749851813679,6.7929,147.13,147.11,4.32473268]
[1749851813887,4.32473268,147.14,147.1,4.32473268]
[1749851814186,4.32473268,147.12,147.08,4.32473268]
[1749851814388,4.32473268,147.09,147.06,34.32]
[1749851814778,6.7956,147.08,147.06,0.04375912]
[1749851816184,11.12033268,147.08,147.06,0.04375912]
[1749851817287,11.12043268,147.07,147.03,45.44203268]
[1749851817888,4.32473268,147.04,146.98,4.32473268]
[1749851818094,4.32473268,147.03,146.98,4.32473268]
[1749851818290,0.0507026,147.02,146.99,0.04757213]
[1749851819490,6.7986,147.01,146.99,0.04757213]
[1749851823895,4.32473268,147.0,146.94,38.66473268]
[1749851824096,4.32473268,146.98,146.94,38.66473268]
[1749851824298,2.2707,147.02,146.94,38.66473268]
[1749851824494,4.32473268,146.99,146.95,4.32473268]
[1749851824790,4.32473268,147.0,146.96,4.32473268]
[1749851824997,0.05103818,146.98,146.96,4.32473268]
[1749851826298,0.05103818,146.98,146.97,6.8003]
[1749851837201,0.05103818,146.98,146.97,11.12503268]
[1749851854227,0.05103818,146.98,146.97,6.8003]
[1749851879644,4.78080204,146.98,146.97,6.8003]
[1749851879850,4.78093045,146.98,146.97,6.8003]
[1749851880041,4.78092482,146.98,146.97,6.8003]
[1749851880245,4.78092581,146.98,146.97,6.8003]
[1749851880548,4.78099048,146.98,146.97,6.8003]
[1749851880941,4.78094998,146.98,146.97,6.8003]
[1749851881148,4.78095239,146.98,146.97,6.8003]
[1749851881350,4.78094998,146.98,146.97,6.8003]
[1749851881550,0.05103818,146.98,146.97,6.8003]
[1749851881852,4.78078033,146.98,146.97,6.8003]
[1749851882054,4.78078274,146.98,146.97,6.8003]
[1749851882251,0.05103818,146.98,146.97,6.8003]
[1749851882453,4.78077552,146.98,146.96,6.8003]
[1749851882648,0.05103818,146.98,146.96,6.8003]
[1749851883358,0.05103818,146.98,146.95,34.36903498]
[1749851884454,0.05103818,146.98,146.96,6.8007]
[1749851884850,0.05103818,146.98,146.95,34.36903498]
[1749851885046,6.36600983,147.05,146.96,4.32473268]
[1749851885355,4.32473268,147.05,146.99,4.32473268]
[1749851885554,11.12173268,147.05,147.0,34.28]
[1749851886044,0.05048355,147.04,147.02,6.7979]
[1749851886243,0.05048355,147.04,147.01,0.04386573]
[1749851886650,0.05048355,147.04,147.02,6.7979]
[1749851888355,0.05048355,147.04,147.03,6.7978]
[1749851891259,4.5507,147.1,147.06,6.7962]
[1749851891260,43.15543268,147.1,147.06,6.7962]
[1749851891556,43.15543268,147.1,147.05,4.32473268]
[1749851891751,8.87543268,147.1,147.05,4.32473268]
[1749851892055,8.87543268,147.1,147.07,6.796]
[1749851892253,8.92445181,147.1,147.07,6.84191971]
[1749851893458,8.92445181,147.1,147.07,0.04591971]
[1749851894060,8.92445181,147.1,147.07,6.84111971]
[1749851897359,15.71875181,147.1,147.07,6.84111971]